{"text_format":"1","workbook":"xlsx","n_sheets":12,"sheets":["Summary of scores (2)","Introduction","Instructions","Foire aux questions","Conseils pour les préservatifs","Gestion de programme","Mise en œuvre de programme","Résultats de programme ","Résumé des notes","Étapes suivantes","Bibliographie","Acronymes"],"not_rendered":{"charts":6,"images":2,"macros":1,"external_links":0,"defined_names":28,"comments":1,"pivot_tables":0},"unopened":[],"bounds":{"document_bytes":16777216,"sheet_cells":100000,"rows_first":2000,"rows_last":500,"rows_between":2000,"halvings":0,"cell_chars":16384,"cell_head_chars":4096},"cells_cut":0,"cells_raw":0,"read":"whole","date_system":"1900"}

{"sheet":"Summary of scores (2)","index":0,"n_rows":142,"n_cols":6,"rows_kept":142,"cut":false,"hidden":true,"merged":[[109,2,141,2],[109,3,136,3],[137,3,141,3],[1,2,1,6],[68,2,74,2],[68,3,71,3],[72,3,73,3],[76,2,108,2],[93,3,97,3],[99,3,100,3],[101,3,108,3],[76,3,79,3],[80,3,82,3],[83,3,86,3],[87,3,89,3],[90,3,92,3],[74,3,75,3],[2,2,67,2],[2,3,23,3],[24,3,45,3],[46,3,67,3]]}
[]
[null,null,"Summary of scores"]
[null,null,"Prevention\nPackages","AGYW Prevention Package\n(HIGH Incidence Locations)",null,"Risk Assessment / Profiling"]
[null,null,null,null,null,"Male and female condoms and lubricants "]
[null,null,null,null,null,"HIV testing, treatment, counselling and support"]
[null,null,null,null,null,"Pre-exposure Prophylaxis"]
[null,null,null,null,null,"STI diagnosis & service integration"]
[null,null,null,null,null,"SRH services incl. contraceptive mix"]
[null,null,null,null,null,"GBV services, post-rape care "]
[null,null,null,null,null,"Antenatal care (ANC) including PMTCT"]
[null,null,null,null,null,"Clinical service package for sex partners of AGYW"]
[null,null,null,null,null,"Accessible services"]
[null,null,null,null,null,"Youth-friendly/Acceptable services"]
[null,null,null,null,null,"Sensitisation"]
[null,null,null,null,null,"School-based prevention campaigns"]
[null,null,null,null,null,"Comprehensive sexuality education"]
[null,null,null,null,null,"Keeping girls in school"]
[null,null,null,null,null,"Community Mobilisation & demand generation"]
[null,null,null,null,null,"Increasing access to justice (policy and legal) "]
[null,null,null,null,null,"Gender-based violence prevention and management "]
[null,null,null,null,null,"Social protection & Social Asset Building"]
[null,null,null,null,null,"Economic Empowerment & Incentives"]
[null,null,null,null,null,"Increasing access to education for young women "]
[null,null,null,null,null,"Transforming harmful cultural and gender norms through community platforms"]
[null,null,null,"AGYW Prevention Package\n(VERY HIGH Incidence Locations)",null,"Risk Assessment / Profiling"]
[null,null,null,null,null,"Male and female condoms and lubricants "]
[null,null,null,null,null,"HIV testing, treatment, counselling and support"]
[null,null,null,null,null,"Pre-exposure Prophylaxis"]
[null,null,null,null,null,"STI diagnosis & service integration"]
[null,null,null,null,null,"SRH services incl. contraceptive mix"]
[null,null,null,null,null,"GBV services, post-rape care "]
[null,null,null,null,null,"Antenatal care (ANC) including PMTCT"]
[null,null,null,null,null,"Clinical service package for sex partners of AGYW"]
[null,null,null,null,null,"Accessible services"]
[null,null,null,null,null,"Youth-friendly/Acceptable services"]
[null,null,null,null,null,"Sensitisation"]
[null,null,null,null,null,"School-based prevention campaigns"]
[null,null,null,null,null,"Comprehensive sexuality education"]
[null,null,null,null,null,"Keeping girls in school"]
[null,null,null,null,null,"Community Mobilisation & demand generation"]
[null,null,null,null,null,"Increasing access to justice (policy and legal) "]
[null,null,null,null,null,"Gender-based violence prevention and management "]
[null,null,null,null,null,"Social protection & Social Asset Building"]
[null,null,null,null,null,"Economic Empowerment & Incentives"]
[null,null,null,null,null,"Increasing access to education for young women "]
[null,null,null,null,null,"Transforming harmful cultural and gender norms through community platforms"]
[null,null,null,"AGYW Prevention Package\n(EXTREMELY HIGH Incidence Locations)",null,"Risk Assessment / Profiling"]
[null,null,null,null,null,"Male and female condoms and lubricants "]
[null,null,null,null,null,"HIV testing, treatment, counselling and support"]
[null,null,null,null,null,"Pre-exposure Prophylaxis"]
[null,null,null,null,null,"STI diagnosis & service integration"]
[null,null,null,null,null,"SRH services incl. contraceptive mix"]
[null,null,null,null,null,"GBV services, post-rape care "]
[null,null,null,null,null,"Antenatal care (ANC) including PMTCT"]
[null,null,null,null,null,"Clinical service package for sex partners of AGYW"]
[null,null,null,null,null,"Accessible services"]
[null,null,null,null,null,"Youth-friendly/Acceptable services"]
[null,null,null,null,null,"Sensitisation"]
[null,null,null,null,null,"School-based prevention campaigns"]
[null,null,null,null,null,"Comprehensive sexuality education"]
[null,null,null,null,null,"Keeping girls in school"]
[null,null,null,null,null,"Community Mobilisation & demand generation"]
[null,null,null,null,null,"Increasing access to justice (policy and legal) "]
[null,null,null,null,null,"Gender-based violence prevention and management "]
[null,null,null,null,null,"Social protection & Social Asset Building"]
[null,null,null,null,null,"Economic Empowerment & Incentives"]
[null,null,null,null,null,"Increasing access to education for young women "]
[null,null,null,null,null,"Transforming harmful cultural and gender norms through community platforms"]
[null,null,"Programme Management","1. Leadership & coordination",null,"National Strategy and Strategic Plan"]
[null,null,null,null,null,"National Technical working group (TWG) for AGYW/Youth Prevention"]
[null,null,null,null,null,"Accountability"]
[null,null,null,null,null,"National and Sub-National plans"]
[null,null,null,"2. Strategy, Policy & regulation",null,"Policies"]
[null,null,null,null,null,"Guidelines"]
[null,null,null,"3. Financing",null,"Costing"]
[null,null,null,null,null,"Budget planning"]
[null,null,"Programme Implementation","4. Step One: Targeting & planning",null,"Demographic assessment & disaggregation"]
[null,null,null,null,null,"Needs assessment"]
[null,null,null,null,null,"Characterisation of male partners of AGYW"]
[null,null,null,null,null,"Target setting"]
[null,null,null,"5. Step Two: Population size estimation by HIV Incidence Level",null,"AGYW PSE - high incidence settings"]
[null,null,null,null,null,"AGYW PSE - very high incidence settings"]
[null,null,null,null,null,"AGYW PSE - extremely incidence settings"]
[null,null,null,"6. Step Three: Identify the groups \"most vulnerable\" or \"most in need\"",null,"Epidemiological assessment (sero-prevalence survey & determinants of risk)"]
[null,null,null,null,null,"Behavoural risk factors"]
[null,null,null,null,null,"Biological risk factors"]
[null,null,null,null,null,"Structural risk factors"]
[null,null,null,"7. Step Four: Review available programme elements and their coverage",null,"Health sector platforms (facilities, service delivery points)"]
[null,null,null,null,null,"Education platforms (schools, universities)"]
[null,null,null,null,null,"Community platforms (NGOs, CSOs)"]
[null,null,null,"8. Step Five: Develop a Results Framework (Theory of Change)",null,"Define & prioritise HIV prevention packages per applicable incidence category"]
[null,null,null,null,null,"Include Programmatic coverage targets"]
[null,null,null,null,null,"Include Cross-cutting activities & complementary action"]
[null,null,null,"9. Step Six: Define/Develop Delivery Systems",null,"Develop/ensure health platforms"]
[null,null,null,null,null,"Develop/ensure education platforms"]
[null,null,null,null,null,"Develop/ensure Community platforms"]
[null,null,null,null,null,"Peer outreach educators (POE), Peer testers and Community Health Workers (CHWs)"]
[null,null,null,null,null,"Meaningful engagement of affected communities in leadership & coordination"]
[null,null,null,"10. Step Seven: Define Management Mechanism",null,"National & Sub National Management systems"]
[null,null,null,"11. Step Eight: Develop Costed Operational Plan",null,"Operational plan"]
[null,null,null,null,null,"Available Resources"]
[null,null,null,"12. Step Nine: Develop M&E Plan",null,"Routine monitoring"]
[null,null,null,null,null,"Referral system tracking"]
[null,null,null,null,null,"Quality assessment"]
[null,null,null,null,null,"Surveillance "]
[null,null,null,null,null,"Data flow"]
[null,null,null,null,null,"Data for decision making"]
[null,null,null,null,null,"The use of Unique Identifier Code for program monitoring"]
[null,null,null,null,null,"Budget monitoring"]
[null,null,"Programme Outcomes","13. Outcomes for AGYW Prevention",null,"Number of new HIV infections per 1000 uninfected population"]
[null,null,null,null,null,"Number and % of people living with HIV "]
[null,null,null,null,null,"Number of AIDS related deaths per 100,000 population"]
[null,null,null,null,null,"Percentage of (estimated) people living with HIV who have been tested HIV-positive"]
[null,null,null,null,null,"Percentage of adults and children with HIV, known to be on treatment 12 months after initiation of antiretroviral therapy"]
[null,null,null,null,null,"Percentage of people living with HIV and on ART who are virologically suppressed"]
[null,null,null,null,null,"Percentage of ever-married or partnered women aged 15-49 who experienced physical or sexual violence from a male intimate partner in the past 12 months"]
[null,null,null,null,null,"Percentage of sexually active young women age 15 - 24 who had multiple sexual partners."]
[null,null,null,null,null,"Percentage of sexually active men age 15-49 who had multiple sexual partners."]
[null,null,null,null,null,"Knows a formal source for condoms (young women 15-24)"]
[null,null,null,null,null,"Knows a formal source for condoms (young men 15-24)"]
[null,null,null,null,null,"Condom use with non-regular partners (young women, 15-24)"]
[null,null,null,null,null,"Condom use with non regular partners (young men, 15-24)"]
[null,null,null,null,null,"Percentage of females age 15-24 who report unintended pregnancy of of current pregnancy or most recent births (teen pregnancy)"]
[null,null,null,null,null,"Percentage of youth neither in employment nor in education or training (NEET)"]
[null,null,null,null,null,"Percentage of females aged 15 - 24 who dropped out of school in the last year"]
[null,null,null,null,null,"Percentage of young people aged 10–24 years reached by life skills–based HIV education in schools"]
[null,null,null,null,null,"Percentage of priority districts (administrative areas) with dedicated programs for young women & male partners (full package) "]
[null,null,null,null,null,"Percentage of adolescent girls and young women in high-HIV incidence communities reached with two interventions in the past three months"]
[null,null,null,null,null,"Percentage of adolescent girls and young women (AGYW) who received PEP"]
[null,null,null,null,null,"PrEP Indicator - tbc"]
[null,null,null,null,null,"SRHR access indicator(s) - tbc"]
[null,null,null,null,null,"Number of AGYW who received GBV related services (e.g. referral for legal or medical care e.g. PEP, post violence care & support services)"]
[null,null,null,null,null,"Percentage of AGYW who received livelihood support (cash transfer or other economic empowerment approaches)"]
[null,null,null,null,null,"Percentage of AGYW who reached with \"keeping girls in school\" initiatives (including education subsidy and others)"]
[null,null,null,null,null,"Number of medical male circumcisions performed according to national standards"]
[null,null,null,null,null,"Percentage of people living with HIV that initiated ART with a CD4 count of <200 cells/mm3"]
[null,null,null,null,null,"Percentage of people living with HIV and on antiretroviral therapy who have a suppressed viral load at 12 months (<1000 copies/ml)"]
[null,null,null,"14. Sustainability",null,"Resource mobilisation and financing"]
[null,null,null,null,null,"Domestic resourcing"]
[null,null,null,null,null,"Social contracting"]
[null,null,null,null,null,"Capacity building and TA Plan"]
[null,null,null,null,null,"Sustainability plan and transition roadmap"]

{"sheet":"Introduction","index":1,"n_rows":2,"n_cols":3,"rows_kept":2,"cut":false,"hidden":false,"merged":[[1,2,1,22]]}
[]
[null,null,"Que sont les Outils d’auto-évaluation pour la prévention du VIH (OAEP) ?"]

{"sheet":"Instructions","index":2,"n_rows":57,"n_cols":19,"rows_kept":57,"cut":false,"hidden":false,"merged":[[2,2,2,17]]}
[]
[]
[null,null,"Comment compléter l’outil d’auto-évaluation pour la prévention (OAEP) ?"]
[]
[]
[]
[]
[]
[]
[]
[]
[]
[]
[]
[]
[]
[]
[]
[]
[]
[]
[]
[]
[]
[]
[]
[]
[]
[]
[]
[]
[]
[]
[]
[]
[]
[]
[]
[]
[]
[]
[]
[]
[]
[]
[]
[]
[]
[]
[]
[]
[]
[]
[]
[]
[]
[null,null,null,null,null,null,null,null,null,null,null,null,null,null,null,null,null,null,"I"]

{"sheet":"Foire aux questions","index":3,"n_rows":2,"n_cols":3,"rows_kept":2,"cut":false,"hidden":false,"merged":[[1,2,1,22]]}
[]
[null,null,"Foire aux questions"]

{"sheet":"Conseils pour les préservatifs","index":4,"n_rows":2,"n_cols":3,"rows_kept":2,"cut":false,"hidden":false,"merged":[[1,2,1,22]]}
[]
[null,null,"Programmes nationaux renforcés de changement des comportements en matière de préservatifs et de produits connexes"]

{"sheet":"Gestion de programme","index":5,"n_rows":91,"n_cols":16,"rows_kept":91,"cut":false,"hidden":false,"merged":[[37,2,41,2],[37,9,41,9],[42,2,46,2],[42,9,46,9],[1,2,1,9],[3,3,3,4],[5,2,16,2],[5,9,16,9],[17,2,18,2],[19,9,23,9],[24,2,29,2],[24,9,29,9],[30,2,35,2],[30,9,35,9],[19,2,23,2],[17,9,18,9],[47,2,51,2],[48,9,51,9],[52,2,56,2],[58,2,65,2],[58,9,65,9],[52,9,56,9],[67,9,76,9],[78,2,81,2],[78,9,81,9],[82,2,83,2],[84,2,86,2],[66,2,76,2],[82,9,83,9],[84,9,86,9]]}
[]
[null,null,"Gestion de programme"]
[]
[null,null,"Élément","Critères",null,"S/O","Absent","Présent mais non optimal","Présent et fonctionnel","Moyenne de l’élément","Commentaires (le cas échéant)","Absent","Present","Optimal","Average","Sustainability Single Figure"]
[null,null,"Leadership et capacité"]
[null,null,"Plan/Stratégie national(e)                 pour les préservatifs","○","Il existe un plan national pour les préservatifs ",null,null,null,null,{"$f":"IFERROR(O6,\"-\")","v":"-"},null,null,null,null,{"$f":"IFERROR(ROUND(AVERAGEIF(L7:N17,\"<>0\",L7:N17),0),\"-\")","v":"-"}]
[null,null,null,"○","Le Plan national pour les préservatifs est informé par  une analyse de la situation qui comprend une analyse globale du marché",null,null,null,null,null,null,{"$f":"IF(ISBLANK(G7),0,1)","v":0},{"$f":"IF(ISBLANK(H7),0,3)","v":0},{"$f":"IF(ISBLANK(I7),0,5)","v":0}]
[null,null,null,"○","Le Plan national pour les préservatifs comprend un Modèle logique / Théorie du changement / Cadre de résultats clairs qui relient les activités aux produits, aux résultats et aux objectifs",null,null,null,null,null,null,0,0,0]
[null,null,null,"○","Le Plan national de distribution de préservatifs identifie les populations prioritaires et justifie leur choix",null,null,null,null,null,null,0,0,0]
[null,null,null,"○","Le Plan national pour les préservatifs définit les obstacles/contraintes à l’utilisation de préservatifs",null,null,null,null,null,null,0,0,0]
[null,null,null,"○","Le Plan national pour les préservatifs définit des objectifs comportementaux pour les populations prioritaires qui tiennent compte de l’offre, de la demande et de la gestion du programme",null,null,null,null,null,null,0,0,0]
[null,null,null,"○","Le Plan national pour les préservatifs comprend des interventions hiérarchisées visant à éliminer les obstacles/contraintes identifiés",null,null,null,null,null,null,0,0,0]
[null,null,null,"○","Le Plan national pour les préservatifs est référencé dans le Plan national de lutte contre le VIH, la Stratégie de prévention du VIH et/ou la Stratégie de planification familiale",null,null,null,null,null,null,0,0,0]
[null,null,null,"○","Le Plan national pour les préservatifs oriente les décisions de financement",null,null,null,null,null,null,0,0,0]
[null,null,null,"○","Le Plan national pour les préservatifs est cité dans les demandes de financement (propositions, budgets) du gouvernement ou des partenaires de mise en œuvre",null,null,null,null,null,null,0,0,0]
[null,null,null,"○","Il existe un plan opérationnel (plan de travail avec des échéances, des responsabilités identifiées et des comptes à rendre) pour le Plan national sur les préservatifs",null,null,null,null,null,null,0,0,0]
[null,null,null,"○","Le plan opérationnel est régulièrement mis à jour (état d’avancement des actions, ajustement des échéances)",null,null,null,null,null,null,{"$f":"IF(ISBLANK(G17),0,1)","v":0},{"$f":"IF(ISBLANK(H17),0,3)","v":0},{"$f":"IF(ISBLANK(I17),0,5)","v":0}]
[null,null,"Capacité du gouvernement à gérer une approche globale du marché","○","Le gouvernement comprend son rôle dans la gestion d’une approche globale du marché et reconnaît la contribution relative des partenaires et des secteurs",null,null,null,null,{"$f":"IFERROR(O18,\"-\")","v":"-"},null,null,null,null,{"$f":"IFERROR(ROUND(AVERAGEIF(L18:N19,\"<>0\",L18:N19),0),\"-\")","v":"-"}]
[null,null,null,"○","Le gouvernement dispose des capacités – notamment les ressources humaines, l’expérience et les outils – nécessaires pour gérer une approche intersectorielle étayant une approche globale du marché",null,null,null,null,null,null,{"$f":"IF(ISBLANK(G19),0,1)","v":0},{"$f":"IF(ISBLANK(H19),0,3)","v":0},{"$f":"IF(ISBLANK(I19),0,5)","v":0}]
[null,null,"Il existe une vision ou un plan pour un marché et un programme de préservatifs sains et durables \n","○","Le Plan national pour les préservatifs comprend une vision ou un plan clair(e) pour un marché durable des préservatifs qui adopte une approche globale du marché",null,null,null,null,{"$f":"IFERROR(O20,\"-\")","v":"-"},null,null,null,null,{"$f":"IFERROR(ROUND(AVERAGEIF(L21:N24,\"<>0\",L21:N24),0),\"-\")","v":"-"}]
[null,null,null,"○","Le Plan national pour les préservatifs comprend une vision d’un marché durable des préservatifs, décrivant la voie à suivre pour réduire la dépendance à l’égard des subventions extérieures grâce à une approche globale du marché",null,null,null,null,null,null,0,0,0,null,{"$f":"IF(MAX(L21:N21)=0,\"\",MAX(L21:N21))","v":""}]
[null,null,null,"○","Les estimations des besoins en préservatifs reflètent l’utilisation actuelle et la contribution de tous les secteurs, au moyen de CNET ou d’un outil similaire",null,null,null,null,null,null,0,0,0]
[null,null,null,"○","Un plan, une stratégie ou un schéma décrivant une approche globale du marché est en place et guide les interventions",null,null,null,null,null,null,0,0,0]
[null,null,null,"○","Les interventions se concentrent sur des solutions systémiques qui bénéficieront à de multiples secteurs et acteurs du marché",null,null,null,null,null,null,0,0,0]
[null,null,"Leadership du gouvernement             et coordination","○","La programmation des préservatifs est confiée à un département ou à une agence clairement identifié(e) qui a pour mandat et responsabilité de diriger et de coordonner",null,null,null,null,{"$f":"IFERROR(O25,\"-\")","v":"-"},null,null,0,null,{"$f":"IFERROR(ROUND(AVERAGEIF(L25:N30,\"<>0\",L25:N30),0),\"-\")","v":"-"}]
[null,null,null,"○","Le ministère ou l’agence responsable bénéficie du soutien d’autres agences gouvernementales compétentes",null,null,null,null,null,null,0,0,0]
[null,null,null,"○","Il existe un point focal reconnu et dédié à la programmation des préservatifs au sein du gouvernement",null,null,null,null,null,null,0,0,0]
[null,null,null,"○","Le programme a désigné un point focal qui dispose de pouvoirs suffisants en matière de responsabilités",null,null,null,null,null,null,0,0,0]
[null,null,null,"○","Le programme est dirigé par un point focal qui a une bonne compréhension et la capacité de gérer une approche globale du marché",null,null,null,null,null,null,0,0,0]
[null,null,null,"○","Le programme est dirigé par un point focal capable de réunir efficacement les partenaires et acteurs du secteur pour coordonner le plan national",null,null,null,null,null,null,{"$f":"IF(ISBLANK(G30),0,1)","v":0},{"$f":"IF(ISBLANK(H30),0,3)","v":0},{"$f":"IF(ISBLANK(I30),0,5)","v":0}]
[null,null,"Coordination générale","○","Le groupe de travail technique sur les préservatifs ou son équivalent a un mandat qui a été revu / mis à jour au cours des 12 derniers mois et se réunit régulièrement",null,null,null,null,{"$f":"IFERROR(O31,\"-\")","v":"-"},null,null,null,{"$f":"IF(ISBLANK(I31),0,5)","v":0},{"$f":"IFERROR(ROUND(AVERAGEIF(L31:N36,\"<>0\",L31:N36),0),\"-\")","v":"-"}]
[null,null,null,"○","Le groupe de travail technique sur les préservatifs comprend des représentants du Conseil national du SIDA et des programmes concernés du ministère de la Santé (santé sexuelle et reproductive/planification familiale) et d’autres programmes concernés (ex. : ministère de l’Éducation)",null,null,null,null,null,null,0,0,0]
[null,null,null,"○","Le groupe de travail technique sur les préservatifs comprend des représentants du secteur privé, des organisations de marketing social, d’autres organisations de la société civile et des usagers",null,null,null,null,null,null,0,0,0]
[null,null,null,"○","Les membres participent régulièrement aux réunions",null,null,null,null,null,null,0,0,0]
[null,null,null,"○","Les responsables de la mise en œuvre alignent leurs activités sur le Plan national pour les préservatifs et comprennent comment les autres partenaires soutiennent le Plan national pour les préservatifs",null,null,null,null,null,null,0,0,0]
[null,null,null,"○","Le statut des actions est suivi et les procès-verbaux des réunions mentionnent les actions liées aux priorités du Plan national pour les préservatifs et le statut est suivi",null,null,null,null,null,null,0,0,0]
[null,null,"Politiques et réglementation"]
[null,null,"Assurance qualité","○","Des normes de qualité pour les préservatifs existent et sont appliquées",null,null,null,null,{"$f":"IFERROR(O38,\"-\")","v":"-"},null,null,null,null,{"$f":"IFERROR(ROUND(AVERAGEIF(L38:N42,\"<>0\",L38:N42),0),\"-\")","v":"-"}]
[null,null,null,"○","Le gouvernement accepte les tests avant expédition effectués par des fabricants certifiés, décrits dans les politiques",null,null,null,null,null,null,{"$f":"IF(ISBLANK(G39),0,1)","v":0},{"$f":"IF(ISBLANK(H39),0,3)","v":0},{"$f":"IF(ISBLANK(I39),0,5)","v":0}]
[null,null,null,"○","Des laboratoires nationaux sont accrédités par un organisme international (Organisation mondiale de la Santé, FHI360 ou autre entité reconnue) ",null,null,null,null,null,null,{"$f":"IF(ISBLANK(G40),0,1)","v":0},{"$f":"IF(ISBLANK(H40),0,3)","v":0},{"$f":"IF(ISBLANK(I40),0,5)","v":0}]
[null,null,null,"○","Les délais et les coûts des tests ne sont pas cités comme un goulot d’étranglement important dans la chaîne d’approvisionnement en préservatifs par les secteurs privé, public ou boursier",null,null,null,null,null,null,0,0,0]
[null,null,null,"○","Tout test requis dans le pays est pratiqué dans un délai prévisible et n’augmente pas considérablement les coûts",null,null,null,null,null,null,0,0,0]
[null,null,"Politiques","○","Les politiques favorisent un environnement propice aux programmes destinés aux populations prioritaires, notamment les populations clés, les jeunes et les populations à risque",null,null,null,null,{"$f":"IFERROR(O43,\"-\")","v":"-"},null,null,null,null,{"$f":"IFERROR(ROUND(AVERAGEIF(L43:N47,\"<>0\",L43:N47),0),\"-\")","v":"-"}]
[null,null,null,"○","Messages sur le changement de comportement en matière de préservatifs diffusés dans les médias et dans les lieux accessibles aux populations à haut risque, notamment les bars et les écoles",null,null,null,null,null,null,0,0,0]
[null,null,null,"○","Les politiques de distribution et de promotion des préservatifs soutiennent activement et explicitement les droits des populations clés",null,null,null,null,null,null,0,0,0]
[null,null,null,"○","Pas d’interdiction de porter des préservatifs (ex. : pour justifier l’arrestation de travailleurs du sexe)",null,null,null,null,null,null,0,0,0]
[null,null,null,"○","Les politiques gouvernementales en matière de réglementation, d’assurance qualité et de fiscalité instaurent des conditions égales pour tous les secteurs et ne sont pas excessivement inhibitrices (coûteuses, trop difficiles à suivre)",null,null,null,null,null,null,0,0,0]
[null,null,"Environnement réglementaire et fiscal","○","Le cadre réglementaire et fiscal est clair, cohérent et n’empêche pas l’importation, la distribution et l’utilisation de préservatifs de qualité",null,null,null,null,null,null,null,null,0,{"$f":"IFERROR(ROUND(AVERAGEIF(L49:N52,\"<>0\",L49:N52),0),\"-\")","v":"-"}]
[null,null,null,"○","La TVA n’est pas appliquée sur les préservatifs",null,null,null,null,{"$f":"IFERROR(O48,\"-\")","v":"-"},null,0,0,0]
[null,null,null,"○","Les droits d’importation sont négligeables / ne contiennent pas d’importations",null,null,null,null,null,null,0,0,0,null,{"$f":"IF(MAX(L50:N50)=0,\"\",MAX(L50:N50))","v":""}]
[null,null,null,"○","Les marques commerciales de préservatifs sont réglementées de la même manière que celles importées par les donateurs, le gouvernement ou les spécialistes du marketing social",null,null,null,null,null,null,0,0,0,null,{"$f":"IF(MAX(L51:N51)=0,\"\",MAX(L51:N51))","v":""}]
[null,null,null,"○","Les délais d’importation et de dédouanement sont courts (non prohibitifs) et prévisibles",null,null,null,null,null,null,{"$f":"IF(ISBLANK(G52),0,1)","v":0},{"$f":"IF(ISBLANK(H52),0,3)","v":0},{"$f":"IF(ISBLANK(I52),0,5)","v":0}]
[null,null,"Directives","○","Des directives appropriées sont en place pour aider les responsables de la mise en œuvre à appliquer la politique",null,null,null,null,{"$f":"IFERROR(O53,\"-\")","v":"-"},null,null,null,null,{"$f":"IFERROR(ROUND(AVERAGEIF(L54:N64,\"<>0\",L54:N64),0),\"-\")","v":"-"}]
[null,null,null,"○","Distribution ciblée de préservatifs gratuits aux populations prioritaires, sur la base de directives (procédures opérationnelles permanentes ou autres)",null,null,null,null,null,null,{"$f":"IF(ISBLANK(G54),0,1)","v":0},{"$f":"IF(ISBLANK(H54),0,3)","v":0},{"$f":"IF(ISBLANK(I54),0,5)","v":0}]
[null,null,null,"○","Les interventions de création de la demande s’appuient sur une stratégie/directive qui comprend une approche segmentée pour les populations prioritaires",null,null,null,null,null,null,0,0,0]
[null,null,null,"○","L’intégration des préservatifs dans les programmes de santé sexuelle et reproductive, dans d’autres programmes de prévention et de traitement est soutenue par des directives indiquant comment les services peuvent répondre au mieux aux besoins globaux des usagers",null,null,null,null,null,null,0,0,0]
[null,null,null,"○","Des mesures de prévention et de contrôle de l’infection COVID-19 sont intégrées à l’ensemble des stratégies, plans et directives de prévention du VIH et de distribution de préservatifs",null,null,null,null,null,null,0,0,0]
[null,null,"Analyse du programme"]
[null,null,"Plan de suivi et d’évaluation","○","Il existe un plan de suivi et d’évaluation du PNC",null,null,null,null,{"$f":"IFERROR(O59,\"-\")","v":"-"},null,null,null,null,{"$f":"IFERROR(ROUND(AVERAGEIF(L60:N66,\"<>0\",L60:N66),0),\"-\")","v":"-"}]
[null,null,null,"○","Le plan de suivi et d’évaluation est explicitement lié aux buts, objectifs, priorités et facteurs comportementaux identifiés dans le plan national pour les préservatifs",null,null,null,null,null,null,0,0,0]
[null,null,null,"○","Le plan de suivi et d’évaluation comprend des cibles d’utilisation du préservatif",null,null,null,null,null,null,0,0,0]
[null,null,null,"○","Le plan de suivi et d’évaluation comprend des indicateurs de l’approche globale du marché, tels que le suivi de la distribution des préservatifs par secteur (public, privé, organisation non gouvernementale), la valeur des préservatifs dans le secteur privé, l’accès aux différents types de points de vente)",null,null,null,null,null,null,{"$f":"IF(ISBLANK(G62),0,1)","v":0},{"$f":"IF(ISBLANK(H62),0,3)","v":0},{"$f":"IF(ISBLANK(I62),0,5)","v":0}]
[null,null,null,"○","Le plan de suivi et d’évaluation comprend le suivi des facteurs comportementaux influençant l’utilisation",null,null,null,null,null,null,{"$f":"IF(ISBLANK(G63),0,1)","v":0},{"$f":"IF(ISBLANK(H63),0,3)","v":0},{"$f":"IF(ISBLANK(I63),0,5)","v":0}]
[null,null,null,"○","Le plan de suivi et d’évaluation est régulièrement mis à jour et distribué aux principaux partenaires (groupe de travail technique sur les préservatifs, etc.)",null,null,null,null,null,null,0,0,0]
[null,null,null,"○","La disponibilité des préservatifs dans les points de vente publics et privés est évaluée au moins une fois par an",null,null,null,null,null,null,{"$f":"IF(ISBLANK(G65),0,1)","v":0},{"$f":"IF(ISBLANK(H65),0,3)","v":0},{"$f":"IF(ISBLANK(I65),0,5)","v":0}]
[null,null,null,"○","Les données sur la perception de la disponibilité des préservatifs par les usagers sont collectées au moins tous les trois ans",null,null,null,null,null,null,0,0,0]
[null,null,"Collecte, analyse, gestion et utilisation des données","○","Les données sont collectées, mises à disposition, analysées et utilisées pour éclairer la prise de décision",null,null,null,null,null,null,null,null,null,{"$f":"IFERROR(ROUND(AVERAGEIF(L68:N77,\"<>0\",L68:N77),0),\"-\")","v":"-"}]
[null,null,null,"○","Le point focal suit activement la mise en œuvre du plan de suivi et d’évaluation",null,null,null,null,{"$f":"IFERROR(O67,\"-\")","v":"-"},null,0,0,0]
[null,null,null,"○","Les organisations non gouvernementales, les marchés sociaux, les secteurs public et commercial génèrent et partagent les données du marché avec le groupe de travail technique sur les préservatifs",null,null,null,null,null,null,0,0,0]
[null,null,null,"○","Des données représentatives sur l’utilisation du préservatif pour les populations prioritaires ont été collectées au cours des trois dernières années",null,null,null,null,null,null,0,0,0]
[null,null,null,"○","Les facteurs comportementaux influençant l’utilisation du préservatif dans les populations prioritaires ont été collectés au cours des deux dernières années",null,null,null,null,null,null,0,0,0]
[null,null,null,"○"," La distribution de préservatifs par secteur fait l’objet d’un suivi (estimatif) et d’un rapport au moins deux fois par an",null,null,null,null,null,null,0,0,0]
[null,null,null,"○","La collecte et les analyses de routine des données existantes sur le marché éclairent les décisions supervisées par le groupe de travail technique sur les préservatifs",null,null,null,null,null,null,0,0,0]
[null,null,null,"○","Les lacunes en matière de données et d’informations ont été identifiées",null,null,null,null,null,null,{"$f":"IF(ISBLANK(G74),0,1)","v":0},{"$f":"IF(ISBLANK(H74),0,3)","v":0},{"$f":"IF(ISBLANK(I74),0,5)","v":0}]
[null,null,null,"○","Les organisations non gouvernementales, les marchés sociaux, les secteurs public et commercial génèrent et partagent les données du marché avec le groupe de travail technique sur les préservatifs",null,null,null,null,null,null,{"$f":"IF(ISBLANK(G75),0,1)","v":0},{"$f":"IF(ISBLANK(H75),0,3)","v":0},{"$f":"IF(ISBLANK(I75),0,5)","v":0}]
[null,null,null,"○","Les secteurs participant au groupe de travail technique sur les préservatifs démontrent leur capacité à utiliser les données pour éclairer les décisions",null,null,null,null,null,null,{"$f":"IF(ISBLANK(G76),0,1)","v":0},{"$f":"IF(ISBLANK(H76),0,3)","v":0},{"$f":"IF(ISBLANK(I76),0,5)","v":0}]
[null,null,null,"○","Un système d’information et de gestion logistique existe pour suivre les préservatifs du secteur public ",null,null,null,null,null,null,{"$f":"IF(ISBLANK(G77),0,1)","v":0},{"$f":"IF(ISBLANK(H77),0,3)","v":0},{"$f":"IF(ISBLANK(I77),0,5)","v":0}]
[null,null,"Financement"]
[null,null,"Appui budgétaire","○","Le point focal pour les préservatifs et le personnel connexe sont suffisamment financés pour remplir leurs fonctions en toute sécurité ",null,null,null,null,{"$f":"IFERROR(O79,\"-\")","v":"-"},null,null,null,null,{"$f":"IFERROR(ROUND(AVERAGEIF(L80:N82,\"<>0\",L80:N82),0),\"-\")","v":"-"}]
[null,null,null,"○","Le financement est assuré pour répondre aux besoins d’approvisionnement en préservatifs pour au moins les trois prochaines années de besoins en préservatifs ",null,null,null,null,null,null,{"$f":"IF(ISBLANK(G80),0,1)","v":0},{"$f":"IF(ISBLANK(H80),0,3)","v":0},{"$f":"IF(ISBLANK(I80),0,5)","v":0}]
[null,null,null,"○","Les niveaux de financement, les besoins et les lacunes sont compris et partagés au sein du gouvernement et avec les donateurs potentiels",null,null,null,null,null,null,{"$f":"IF(ISBLANK(G81),0,1)","v":0},{"$f":"IF(ISBLANK(H81),0,3)","v":0},{"$f":"IF(ISBLANK(I81),0,5)","v":0}]
[null,null,null,"○","Un financement national est disponible pour soutenir l’achat d’au moins 20 % des préservatifs destinés au secteur public/à la distribution gratuite",null,null,null,null,null,null,{"$f":"IF(ISBLANK(G82),0,1)","v":0},{"$f":"IF(ISBLANK(H82),0,3)","v":0},{"$f":"IF(ISBLANK(I82),0,5)","v":0}]
[null,null,"Dépendance du marché à l’égard des subventions","○","Les organisations de marketing social ont la possibilité de répondre durablement et équitablement aux besoins des populations cibles",null,null,null,null,{"$f":"IFERROR(O83,\"-\")","v":"-"},null,null,null,null,{"$f":"IFERROR(ROUND(AVERAGEIF(L84:N84,\"<>0\",L84:N84),0),\"-\")","v":"-"},{"$f":"IF(MAX(L83:N83)=0,\"\",MAX(L83:N83))","v":""}]
[null,null,null,"○","La dépendance relative de l’ensemble du marché des préservatifs à l’égard des subventions externes (donateurs) n’est pas significative, est en baisse ou un plan existe pour réduire cette dépendance",null,null,null,null,null,null,{"$f":"IF(ISBLANK(G84),0,1)","v":0},{"$f":"IF(ISBLANK(H84),0,3)","v":0},{"$f":"IF(ISBLANK(I84),0,5)","v":0},null,{"$f":"IF(MAX(L84:N84)=0,\"\",MAX(L84:N84))","v":""}]
[null,null,"Potentiel et croissance du marché","○","Le nombre de produits/marques/prix distincts sur le marché est diversifié et en augmentation ",null,null,null,null,{"$f":"IFERROR(O85,\"-\")","v":"-"},null,null,null,null,{"$f":"IFERROR(ROUND(AVERAGEIF(L86:N87,\"<>0\",L86:N87),0),\"-\")","v":"-"},{"$f":"IF(MAX(L85:N85)=0,\"\",MAX(L85:N85))","v":""}]
[null,null,null,"○","La valeur du marché est en hausse ",null,null,null,null,null,null,{"$f":"IF(ISBLANK(G86),0,1)","v":0},{"$f":"IF(ISBLANK(H86),0,3)","v":0},{"$f":"IF(ISBLANK(I86),0,5)","v":0},null,{"$f":"IF(MAX(L86:N86)=0,\"\",MAX(L86:N86))","v":""}]
[null,null,null,"○","Hausse de la croissance du volume du marché commercial",null,null,null,null,null,null,{"$f":"IF(ISBLANK(G87),0,1)","v":0},{"$f":"IF(ISBLANK(H87),0,3)","v":0},{"$f":"IF(ISBLANK(I87),0,5)","v":0},null,{"$f":"IF(MAX(L87:N87)=0,\"\",MAX(L87:N87))","v":""}]
[]
[null,null,null,null,null,null,null,null,null,null,null,null,{"$f":"COUNTIF(O6:O87,\"-\")","v":14}]
[null,null,null,null,null,null,null,null,null,null,null,null,{"$f":"COUNTIF(O6:O87,\">0\")","v":0}]
[null,null,null,null,null,null,null,null,null,null,null,"Sheet Completion",{"$f":"M90/(M89+M90)","v":0},{"$f":"1-M91","v":1}]

{"sheet":"Mise en œuvre de programme","index":6,"n_rows":38,"n_cols":16,"rows_kept":38,"cut":false,"hidden":false,"merged":[[7,2,8,2],[7,9,8,9],[1,2,1,9],[3,3,3,4],[5,2,6,2],[5,9,6,9],[11,2,13,2],[11,3,11,4],[11,9,13,9],[14,2,16,2],[14,3,14,4],[14,9,16,9],[14,5,14,8],[18,2,20,2],[18,3,18,4],[18,9,20,9],[21,3,21,4],[22,2,23,2],[22,9,23,9],[18,5,18,8],[27,2,28,2],[27,9,28,9],[24,3,24,4],[24,2,26,2],[24,9,26,9],[24,5,24,8]]}
[]
[null,null,"Mise en œuvre de programme"]
[]
[null,null,"Élément","Critères",null,"S/O","Absent","Présent mais non optimal","Présent et fonctionnel","Moyenne de l’élément","Commentaires (le cas échéant)","Absent","Present","Optimal","Average","Sustainability Single Figure"]
[null,null,"Intégration"]
[null,null,"Les activités de promotion et de distribution de préservatifs sont intégrées dans d'autres programmes de prévention du VIH, de planification familiale et de santé sexuelle et reproductive",null,"Les directives indiquent comment la promotion et la distribution de préservatifs peuvent/doivent être intégrées à la planification familiale, au traitement du VIH, aux autres formes de prévention et aux interventions ciblant les populations clés, les adolescentes et les jeunes femmes",null,null,null,null,{"$f":"IFERROR(O6,\"-\")","v":"-"},null,{"$f":"IF(ISBLANK(G6),0,1)","v":0},{"$f":"IF(ISBLANK(H6),0,3)","v":0},{"$f":"IF(ISBLANK(I6),0,5)","v":0},{"$f":"IFERROR(ROUND(AVERAGEIF(L6:N7,\"<>0\",L6:N7),0),\"-\")","v":"-"}]
[null,null,null,null,"Des procédures opérationnelles permanentes (ou l’équivalent) existent pour aider les prestataires, les agents de santé communautaires et les pairs-éducateurs des programmes de santé sexuelle et reproductive, de planification familiale, de traitement du VIH et d’autres programmes de prévention (adolescentes et jeunes femmes, populations clés, prophylaxie avant exposition, etc.) à intégrer des messages de programmation et de distribution de préservatifs dans leurs interventions",null,null,null,null,null,null,{"$f":"IF(ISBLANK(G7),0,1)","v":0},{"$f":"IF(ISBLANK(H7),0,3)","v":0},{"$f":"IF(ISBLANK(I7),0,5)","v":0}]
[null,null,"COVID -19",null,"Des programmes sont en place pour encourager et suivre l’utilisation du vaccin COVID-19 chez les usagers de préservatifs",null,null,null,null,{"$f":"IFERROR(O8,\"-\")","v":"-"},null,{"$f":"IF(ISBLANK(G8),0,1)","v":0},{"$f":"IF(ISBLANK(H8),0,3)","v":0},{"$f":"IF(ISBLANK(I8),0,5)","v":0},{"$f":"IFERROR(ROUND(AVERAGEIF(L8:N9,\"<>0\",L8:N9),0),\"-\")","v":"-"}]
[null,null,null,null,"Maintien de la messagerie et de l’accès sécurisé aux modèles de prestation de services hors établissement (ex. : communautaires, à domicile, de télésanté) pendant les pics de COVID-19 afin d’éviter toute interruption de service",null,null,null,null,null,null,{"$f":"IF(ISBLANK(G9),0,1)","v":0},{"$f":"IF(ISBLANK(H9),0,3)","v":0},{"$f":"IF(ISBLANK(I9),0,5)","v":0}]
[null,null,"Demande (axée sur les populations prioritaires telles qu’identifiées dans le plan national)"]
[null,null,"Données comportementales utilisées pour informer les activités de création de la demande",null,"Des données probantes promeuvent le changement comportemental, la création de demande et les interventions de communication",null,null,null,null,{"$f":"IFERROR(O11,\"-\")","v":"-"},null,{"$f":"IF(ISBLANK(G11),0,1)","v":0},{"$f":"IF(ISBLANK(H11),0,3)","v":0},{"$f":"IF(ISBLANK(I11),0,5)","v":0},{"$f":"IFERROR(ROUND(AVERAGEIF(L11:N11,\"<>0\",L11:N11),0),\"-\")","v":"-"}]
[null,null,"Stratégies de segmentation","Des stratégies de segmentation existent et :",null,null,null,null,null,{"$f":"IFERROR(O12,\"-\")","v":"-"},null,null,{"$f":"IF(ISBLANK(H12),0,3)","v":0},null,{"$f":"IFERROR(ROUND(AVERAGEIF(L13:N14,\"<>0\",L13:N14),0),\"-\")","v":"-"}]
[null,null,null,null,"Ciblent les interventions sur des publics divisés en groupes plus petits présentant des besoins, des préférences et des caractéristiques similaires",null,null,null,null,null,null,{"$f":"IF(ISBLANK(G13),0,1)","v":0},{"$f":"IF(ISBLANK(H13),0,3)","v":0},{"$f":"IF(ISBLANK(I13),0,5)","v":0}]
[null,null,null,null,"Orientent la conception de l’intervention et peuvent inclure une segmentation par groupe démographique, comportemental (populations adoptant des comportements à risque), psychographique ou autre",null,null,null,null,null,null,{"$f":"IF(ISBLANK(G14),0,1)","v":0},{"$f":"IF(ISBLANK(H14),0,3)","v":0},{"$f":"IF(ISBLANK(I14),0,5)","v":0}]
[null,null,"Directives sur la création de demande","Il existe des directives spécifiques pour donner la priorité aux investissements dans les interventions visant les populations prioritaires :",null,null,null,null,null,{"$f":"IFERROR(O15,\"-\")","v":"-"},null,null,null,null,{"$f":"IFERROR(ROUND(AVERAGEIF(L16:N17,\"<>0\",L16:N17),0),\"-\")","v":"-"}]
[null,null,null,"○","Existence de procédures opérationnelles permanentes pour la promotion, la sensibilisation et la distribution de préservatifs auprès de travailleurs de première ligne",null,null,null,null,null,null,{"$f":"IF(ISBLANK(G16),0,1)","v":0},{"$f":"IF(ISBLANK(H16),0,3)","v":0},{"$f":"IF(ISBLANK(I16),0,5)","v":0}]
[null,null,null,"○","Il existe des stratégies / directives / plans de communication",null,null,null,null,null,null,{"$f":"IF(ISBLANK(G17),0,1)","v":0},{"$f":"IF(ISBLANK(H17),0,3)","v":0},{"$f":"IF(ISBLANK(I17),0,5)","v":0}]
[null,null,"Offre"]
[null,null,"Quantification de l’univers              des besoins","Les besoins totaux en préservatifs dans le pays ont été quantifiés et analysés par rapport à l’utilisation actuelle des préservatifs au moyen de l’Outil d’estimation des besoins en préservatifs et des ressources nécessaires du Programme des Nations Unies sur le VIH/SIDA ONUSIDA, C-NET :",null,null,null,null,null,{"$f":"IFERROR(O19,\"-\")","v":"-"},null,null,null,null,{"$f":"IFERROR(ROUND(AVERAGEIF(L20:N21,\"<>0\",L20:N21),0),\"-\")","v":"-"}]
[null,null,null,"○","La différence entre les besoins, la consommation et l’offre est comprise, analysée par population prioritaire et informe les plans nationaux",null,null,null,null,null,null,{"$f":"IF(ISBLANK(G20),0,1)","v":0},{"$f":"IF(ISBLANK(H20),0,3)","v":0},{"$f":"IF(ISBLANK(I20),0,5)","v":0}]
[null,null,null,"○","L’approvisionnement est fiable et adéquat pour répondre à la consommation actuelle, avec une marge pour tenir compte de la demande croissante",null,null,null,null,null,null,{"$f":"IF(ISBLANK(G21),0,1)","v":0},{"$f":"IF(ISBLANK(H21),0,3)","v":0},{"$f":"IF(ISBLANK(I21),0,5)","v":0}]
[null,null,"Facteurs de distribution dans une approche globale du marché","Un plan ou une stratégie coordonnée de fourniture de préservatifs tient compte de la contribution du public, du marketing social et du secteur commercial, ainsi que des avantages relatifs de chacun pour atteindre les populations cibles",null,null,null,null,null,{"$f":"IFERROR(O22,\"-\")","v":"-"},null,{"$f":"IF(ISBLANK(G22),0,1)","v":0},{"$f":"IF(ISBLANK(H22),0,3)","v":0},{"$f":"IF(ISBLANK(I22),0,5)","v":0},{"$f":"IFERROR(ROUND(AVERAGEIF(L22:N22,\"<>0\",L22:N22),0),\"-\")","v":"-"}]
[null,null,"Plan pluriannuel d’approvisionnement en préservatifs (plan Coalition pour les fournitures de santé génésique)","○","L’approvisionnement est régi par un plan d’approvisionnement pluriannuel avec une quantification intégrant l’offre par le marketing social et les secteurs commerciaux et tient compte de la consommation et de l’utilisation prévue au moyen de l’Outil d’estimation des besoins et des ressources en préservatifs de l’ONUSIDA,  (outil C-NET)",null,null,null,null,{"$f":"IFERROR(O23,\"-\")","v":"-"},null,{"$f":"IF(ISBLANK(G23),0,1)","v":0},{"$f":"IF(ISBLANK(H23),0,3)","v":0},{"$f":"IF(ISBLANK(I23),0,5)","v":0},{"$f":"IFERROR(ROUND(AVERAGEIF(L23:N24,\"<>0\",L23:N24),0),\"-\")","v":"-"}]
[null,null,null,"○","Les efforts de quantification permettent de déterminer les sources de financement et le nombre de préservatifs nécessaires pour répondre à l’utilisation ou à la demande existante, plutôt qu’aux besoins totaux",null,null,null,null,null,null,{"$f":"IF(ISBLANK(G24),0,1)","v":0},{"$f":"IF(ISBLANK(H24),0,3)","v":0},{"$f":"IF(ISBLANK(I24),0,5)","v":0}]
[null,null,"Qualité de l’offre","Les stocks mensuels soutenant la distribution gratuite/publique dans les entrepôts représentent au moins six mois de l’approvisionnement calculé requis et les ruptures de stock ne constituent pas un problème au niveau national, régional ou sous-régional :",null,null,null,null,null,{"$f":"IFERROR(O25,\"-\")","v":"-"},null,null,null,null,{"$f":"IFERROR(ROUND(AVERAGEIF(L26:N27,\"<>0\",L26:N27),0),\"-\")","v":"-"}]
[null,null,null,"○","Les ruptures de stock au niveau national, régional ou de l’établissement, ou pour les partenaires de mise en œuvre (organisations communautaires, etc.), ne posent pas problème",null,null,null,null,null,null,{"$f":"IF(ISBLANK(G26),0,1)","v":0},{"$f":"IF(ISBLANK(H26),0,3)","v":0},{"$f":"IF(ISBLANK(I26),0,5)","v":0}]
[null,null,null,"○"," Les préservatifs périmés au niveau central ou sous-national ne posent pas problème",null,null,null,null,null,null,0,0,0]
[null,null,"Directives pour la distribution de préservatifs gratuits","○","Le programme national a adopté des directives pour soutenir la distribution et la promotion ciblées auprès des populations prioritaires",null,null,null,null,{"$f":"IFERROR(O28,\"-\")","v":"-"},null,0,0,0,{"$f":"IFERROR(ROUND(AVERAGEIF(L28:N29,\"<>0\",L28:N29),0),\"-\")","v":"-"}]
[null,null,null,"○","Des procédures opérationnelles permanentes aident les prestataires et les travailleurs de proximité en indiquant comment intégrer le conseil à la distribution, en tenant compte des préservatifs pour la planification familiale et de la fréquence des rapports sexuels, ainsi que des comportements à risque",null,null,null,null,null,null,0,0,0]
[null,null,"Système d’information et de gestion logistique","○","Existence d’un système d’information sur la gestion logistique des préservatifs intégré aux systèmes nationaux SIG",null,null,null,null,{"$f":"IFERROR(O30,\"-\")","v":"-"},null,0,0,0,{"$f":"IFERROR(ROUND(AVERAGEIF(L30:N30,\"<>0\",L30:N30),0),\"-\")","v":"-"}]
[null,null,"Accessibilité perçue et disponibilité des préservatifs","○","Les préservatifs sont perçus comme étant largement accessibles et disponibles par les populations et les sous-groupes de population",null,null,null,null,{"$f":"IFERROR(O31,\"-\")","v":"-"},null,0,0,0,{"$f":"IFERROR(ROUND(AVERAGEIF(L31:N31,\"<>0\",L31:N31),0),\"-\")","v":"-"}]
[]
[]
[null,null,null,null,""]
[]
[null,null,null,null,null,null,null,null,null,null,null,null,{"$f":"COUNTIF(O5:O31,\"-\")","v":12}]
[null,null,null,null,null,null,null,null,null,null,null,null,{"$f":"COUNTIF(O6:O31,\">0\")","v":0}]
[null,null,null,null,null,null,null,null,null,null,null,"Sheet Completion",{"$f":"M37/(M36+M37)","v":0},{"$f":"1-M38","v":1}]

{"sheet":"Résultats de programme ","index":7,"n_rows":23,"n_cols":15,"rows_kept":23,"cut":false,"hidden":false,"merged":[[17,2,17,4],[18,2,18,4],[8,2,8,4],[9,2,9,4],[15,2,15,4],[10,2,10,4],[11,2,11,4],[12,2,12,4],[13,2,13,4],[1,2,1,9],[3,3,3,4],[6,2,6,4],[7,2,7,4],[16,2,16,4]]}
[]
[null,null,"Résultats de programme"]
[]
[null,null,"Élément","Critères",null,"S/O","Pas d’objectif","Objectif non atteint ou non conforme aux prévisions","Objectif atteint ou en passe de l’être","Moyenne de l’élément","Commentaires (le cas échéant)","Absent","Present","Optimal","Average"]
[null,null,"Résultats et indicateurs"]
[null,null,"Indicateurs clés"]
[null,null,"Exposition de la population à risque aux activités de création de la demande/interventions comportementales",null,null,null,null,null,null,{"$f":"IFERROR(O7,\"-\")","v":"-"},null,{"$f":"IF(ISBLANK(G7),0,1)","v":0},{"$f":"IF(ISBLANK(H7),0,3)","v":0},{"$f":"IF(ISBLANK(I7),0,5)","v":0},{"$f":"IFERROR(IF(ISBLANK(G7),ROUND(AVERAGEIF(L7:N7,\"<>0\",L7:N7),0),L7),\"-\")","v":"-"}]
[null,null,"Pourcentage d’usagers déclarant que des préservatifs sont disponibles « quand et où j’en ai besoin »",null,null,null,null,null,null,{"$f":"IFERROR(O8,\"-\")","v":"-"},null,0,0,0,{"$f":"IFERROR(IF(ISBLANK(G8),ROUND(AVERAGEIF(L8:N8,\"<>0\",L8:N8),0),L8),\"-\")","v":"-"}]
[null,null,"Pourcentage de personnes ayant utilisé des préservatifs avec un partenaire non régulier au cours des douze derniers mois (hommes ; ventilé par âge)",null,null,null,null,null,null,"-",null,{"$f":"IF(ISBLANK(G9),0,1)","v":0},{"$f":"IF(ISBLANK(H9),0,3)","v":0},{"$f":"IF(ISBLANK(I9),0,5)","v":0},{"$f":"IFERROR(IF(ISBLANK(G9),ROUND(AVERAGEIF(L9:N9,\"<>0\",L9:N9),0),L9),\"-\")","v":"-"}]
[null,null,"Pourcentage de personnes ayant utilisé des préservatifs avec un partenaire non régulier au cours des douze derniers mois (femmes ; ventilé par âge)",null,null,null,null,null,null,"-",null,0,0,0,"-"]
[null,null,"Pourcentage d’hommes ayant utilisé un préservatif lors de leur dernier rapport anal avec un partenaire masculin non régulier",null,null,null,null,null,null,"-",null,0,0,0,"-"]
[null,null,"Pourcentage de travailleurs du sexe ayant utilisé un préservatif lors de leur dernier rapport sexuel avec un client",null,null,null,null,null,null,"-",null,0,0,0,"-"]
[null,null,"Pourcentage d’utilisation du préservatif lors du dernier rapport sexuel rémunéré (chez les hommes)",null,null,null,null,null,null,"-",null,0,0,0,"-"]
[null,null,"Pourcentage d’utilisation du préservatif lors de rapports sexuels prémaritaux (chez les hommes et les femmes de 15 à 24 ans) parmi ceux ayant déclaré avoir eu des rapports sexuels avant le mariage",null,null,null,null,null,null,"-",null,{"$f":"IF(ISBLANK(G14),0,1)","v":0},{"$f":"IF(ISBLANK(H14),0,3)","v":0},{"$f":"IF(ISBLANK(I14),0,5)","v":0},{"$f":"IFERROR(IF(ISBLANK(G14),ROUND(AVERAGEIF(L14:N14,\"<>0\",L14:N14),0),L14),\"-\")","v":"-"}]
[null,null,"Indicateurs complémentaires"]
[null,null,"Nombre total de préservatifs distribués pendant la période de référence, ventilés par secteur",null,null,null,null,null,null,"-",null,0,0,0,{"$f":"IFERROR(IF(ISBLANK(G16),ROUND(AVERAGEIF(L16:N16,\"<>0\",L16:N16),0),L16),\"-\")","v":"-"}]
[null,null,"Nombre de sites du secteur public signalant une rupture de stock de préservatifs au cours des douze derniers mois",null,null,null,null,null,null,"-",null,{"$f":"IF(ISBLANK(G17),0,1)","v":0},{"$f":"IF(ISBLANK(H17),0,3)","v":0},{"$f":"IF(ISBLANK(I17),0,5)","v":0},{"$f":"IFERROR(IF(ISBLANK(G17),ROUND(AVERAGEIF(L17:N17,\"<>0\",L17:N17),0),L17),\"-\")","v":"-"}]
[null,null,"Couverture : pourcentage de points de vente appropriés (points de livraison dans tous les secteurs) proposant des préservatifs",null,null,null,null,null,null,"-",null,{"$f":"IF(ISBLANK(G18),0,1)","v":0},{"$f":"IF(ISBLANK(H18),0,3)","v":0},{"$f":"IF(ISBLANK(I18),0,5)","v":0},{"$f":"IFERROR(IF(ISBLANK(G18),ROUND(AVERAGEIF(L18:N18,\"<>0\",L18:N18),0),L18),\"-\")","v":"-"}]
[null,null,"Utilisation équitable du préservatif : Pas plus de 10 % de différence entre le pourcentage de la population des deux quintiles les plus riches déclarant utiliser des préservatifs et celui des deux quintiles les plus pauvres",null,null,null,null,null,null,"-",null,{"$f":"IF(ISBLANK(G19),0,1)","v":0},{"$f":"IF(ISBLANK(H19),0,3)","v":0},{"$f":"IF(ISBLANK(I19),0,5)","v":0},{"$f":"IFERROR(IF(ISBLANK(G19),ROUND(AVERAGEIF(L19:N19,\"<>0\",L19:N19),0),L19),\"-\")","v":"-"}]
[]
[null,null,null,null,null,null,null,null,null,null,null,null,{"$f":"COUNTIF(O7:O19,\"-\")","v":12}]
[null,null,null,null,null,null,null,null,null,null,null,null,{"$f":"COUNTIF(O7:O19,\">0\")","v":0}]
[null,null,null,null,null,null,null,null,null,null,null,"Sheet Completion",{"$f":"M22/(M21+M22)","v":0},{"$f":"1-M23","v":1}]

{"sheet":"Résumé des notes","index":8,"n_rows":46,"n_cols":11,"rows_kept":46,"cut":false,"hidden":false,"merged":[[27,2,39,2],[27,3,34,3],[35,3,38,3],[16,2,26,2],[17,3,19,3],[20,3,26,3],[1,2,1,6],[2,3,6,3],[2,2,15,2],[7,3,10,3],[11,3,12,3],[13,3,15,3]]}
[]
[null,null,"Résumé des notes"]
[null,null,"Gestion de programme","Leadership et capacité",null,"Plan/Stratégie national(e) pour les préservatifs",{"$f":"'Gestion de programme'!O6","v":"-"}]
[null,null,null,null,null,"Il existe une vision ou un plan pour un marché et un programme de préservatifs sains et durables ",{"$f":"'Gestion de programme'!O18","v":"-"}]
[null,null,null,null,null,"Leadership du gouvernement et coordination",{"$f":"'Gestion de programme'!O20","v":"-"}]
[null,null,null,null,null,"Capacité du gouvernement à gérer une approche globale du marché",{"$f":"'Gestion de programme'!O25","v":"-"}]
[null,null,null,null,null,"Coordination générale",{"$f":"'Gestion de programme'!O31","v":"-"}]
[null,null,null,"Politiques et réglementation",null,"Assurance qualité",{"$f":"'Gestion de programme'!O38","v":"-"}]
[null,null,null,null,null,"Politiques",{"$f":"'Gestion de programme'!O43","v":"-"}]
[null,null,null,null,null,"Environnement réglementaire et fiscal",{"$f":"'Gestion de programme'!O48","v":"-"}]
[null,null,null,null,null,"Directives ",{"$f":"'Gestion de programme'!O53","v":"-"}]
[null,null,null,"Analyse du programme",null,"Plan de suivi et d’évaluation",{"$f":"'Gestion de programme'!O59","v":"-"}]
[null,null,null,null,null,"Collecte, analyse, gestion et utilisation des données",{"$f":"'Gestion de programme'!O67","v":"-"}]
[null,null,null,"Financement",null,"Appui budgétaire",{"$f":"'Gestion de programme'!O79","v":"-"}]
[null,null,null,null,null,"Dépendance du marché à l’égard des subventions",{"$f":"'Gestion de programme'!O83","v":"-"}]
[null,null,null,null,null,"Potentiel et croissance du marché",{"$f":"'Gestion de programme'!O85","v":"-"}]
[null,null,"Mise en œuvre de programme","Intégration",null,"Les activités de promotion et de distribution de préservatifs sont intégrées dans d'autres programmes de prévention du VIH, de planification familiale et de santé sexuelle et reproductive",{"$f":"'Mise en œuvre de programme'!O6","v":"-"}]
[null,null,null,"Demande",null,"Données comportementales utilisées pour informer les activités de création de la demande",{"$f":"'Mise en œuvre de programme'!O11","v":"-"}]
[null,null,null,null,null,"Stratégies de segmentation",{"$f":"'Mise en œuvre de programme'!O12","v":"-"}]
[null,null,null,null,null,"Directives sur la création de demande",{"$f":"'Mise en œuvre de programme'!O15","v":"-"}]
[null,null,null,"Offre",null,"Quantification de l’univers des besoins",{"$f":"'Mise en œuvre de programme'!O19","v":"-"}]
[null,null,null,null,null,"Facteurs de distribution dans une approche globale du marché",{"$f":"'Mise en œuvre de programme'!O22","v":"-"}]
[null,null,null,null,null,"Plan pluriannuel d’approvisionnement en préservatifs (plan RHSC)",{"$f":"'Mise en œuvre de programme'!O23","v":"-"}]
[null,null,null,null,null,"Qualité de l’offre",{"$f":"'Mise en œuvre de programme'!O25","v":"-"}]
[null,null,null,null,null,"Directives pour la distribution de préservatifs gratuits",{"$f":"'Mise en œuvre de programme'!O28","v":"-"}]
[null,null,null,null,null,"Système d’information et de gestion logistique",{"$f":"'Mise en œuvre de programme'!O30","v":"-"}]
[null,null,null,null,null,"Accessibilité perçue et disponibilité des préservatifs",{"$f":"'Mise en œuvre de programme'!O31","v":"-"}]
[null,null,"Résultats de programme","Résultats et indicateurs",null,"Exposition de la population à risque aux activités de création de la demande/interventions comportementales",{"$f":"'Résultats de programme '!O7","v":"-"}]
[null,null,null,null,null,"Pourcentage d’usagers déclarant que des préservatifs sont disponibles « quand et où j’en ai besoin »’",{"$f":"'Résultats de programme '!O8","v":"-"}]
[null,null,null,null,null,"Pourcentage de personnes ayant utilisé des préservatifs avec un partenaire non régulier au cours des douze derniers mois (hommes ; ventilé par âge)",{"$f":"'Résultats de programme '!O9","v":"-"}]
[null,null,null,null,null,"Pourcentage de personnes ayant utilisé des préservatifs avec un partenaire non régulier au cours des douze derniers mois (femmes ; ventilé par âge)",{"$f":"'Résultats de programme '!O10","v":"-"}]
[null,null,null,null,null,"Pourcentage d’hommes ayant utilisé un préservatif lors de leur dernier rapport anal avec un partenaire masculin non régulier",{"$f":"'Résultats de programme '!O11","v":"-"}]
[null,null,null,null,null,"Pourcentage de travailleurs du sexe ayant utilisé un préservatif lors de leur dernier rapport sexuel avec un client",{"$f":"'Résultats de programme '!O12","v":"-"}]
[null,null,null,null,null,"Pourcentage d’utilisation du préservatif lors du dernier rapport sexuel rémunéré (chez les hommes)",{"$f":"'Résultats de programme '!O13","v":"-"}]
[null,null,null,null,null,"Pourcentage d’utilisation du préservatif lors de rapports sexuels prémaritaux (chez les hommes et les femmes de 15 à 24 ans) parmi ceux ayant déclaré avoir eu des rapports sexuels avant le mariage",{"$f":"'Résultats de programme '!O14","v":"-"}]
[null,null,null,"Indicateurs complémentaires",null,"Nombre total de préservatifs distribués pendant la période de référence, ventilés par secteur",{"$f":"'Résultats de programme '!O16","v":"-"}]
[null,null,null,null,null,"Nombre de sites du secteur public signalant une rupture de stock de préservatifs au cours des douze derniers mois",{"$f":"'Résultats de programme '!O17","v":"-"}]
[null,null,null,null,null,"Couverture : pourcentage de points de vente appropriés (points de livraison dans tous les secteurs) proposant des préservatifs",{"$f":"'Résultats de programme '!O18","v":"-"}]
[null,null,null,null,null,"Utilisation équitable du préservatif",{"$f":"'Résultats de programme '!O19","v":"-"}]
[null,null,null,"Indicateurs de durabilité",null,null,{"$f":"IFERROR(ROUND(AVERAGE('Gestion de programme'!P6:P86),0),\"-\")","v":"-"}]
[null,null,null,"Indicateurs COVID-19 (et autres pandémies)",null,null,{"$f":"IF((SUM('Gestion de programme'!L57:N57)+SUM('Mise en œuvre de programme'!L8:N8)+SUM('Mise en œuvre de programme'!L9:N9))/3=0,\"-\", ROUND((SUM('Gestion de programme'!L57:N57)+SUM('Mise en œuvre de programme'!L8:N8)+SUM('Mise en œuvre de programme'!L9:N9))/3,0))","v":"-"}]
[]
[]
[null,null,null,null,null,null,null,null,null,{"$f":"COUNTIF(G3:G41,\"-\")","v":39}]
[null,null,null,null,null,null,null,null,null,{"$f":"COUNTIF(G3:G41,\">0\")","v":0}]
[null,null,null,null,null,null,null,null,"PSAT Completion",{"$f":"J45/(J44+J45)","v":0},{"$f":"1-J46","v":1}]

{"sheet":"Étapes suivantes","index":9,"n_rows":54,"n_cols":8,"rows_kept":54,"cut":false,"hidden":false,"merged":[[1,2,1,8],[11,2,11,3]]}
[]
[null,null,"Étapes suivantes"]
[]
[null,null,null,null,null,"Élément à traiter/améliorer","Raison de la mauvaise performance","Actions proposées (ex. : soutien requis ou actions correctives)"]
[null,null,null,null,1,{"$f":"IFERROR(INDEX('Résumé des notes'!$F$1:$F$41,SMALL(IF('Résumé des notes'!$G$1:$G$41<=$C$12,ROW('Résumé des notes'!$G$1:$G$41)),ROW(3:3))),\"\")","v":""}]
[null,null,null,null,2,{"$f":"IFERROR(INDEX('Résumé des notes'!$F$1:$F$41,SMALL(IF('Résumé des notes'!$G$1:$G$41<=$C$12,ROW('Résumé des notes'!$G$1:$G$41)),ROW(4:4))),\"\")","v":""}]
[null,null,null,null,3,{"$f":"IFERROR(INDEX('Résumé des notes'!$F$1:$F$41,SMALL(IF('Résumé des notes'!$G$1:$G$41<=$C$12,ROW('Résumé des notes'!$G$1:$G$41)),ROW(5:5))),\"\")","v":""}]
[null,null,null,null,4,{"$f":"IFERROR(INDEX('Résumé des notes'!$F$1:$F$41,SMALL(IF('Résumé des notes'!$G$1:$G$41<=$C$12,ROW('Résumé des notes'!$G$1:$G$41)),ROW(6:6))),\"\")","v":""}]
[null,null,null,null,5,{"$f":"IFERROR(INDEX('Résumé des notes'!$F$1:$F$41,SMALL(IF('Résumé des notes'!$G$1:$G$41<=$C$12,ROW('Résumé des notes'!$G$1:$G$41)),ROW(7:7))),\"\")","v":""}]
[null,null,null,null,6,{"$f":"IFERROR(INDEX('Résumé des notes'!$F$1:$F$41,SMALL(IF('Résumé des notes'!$G$1:$G$41<=$C$12,ROW('Résumé des notes'!$G$1:$G$41)),ROW(8:8))),\"\")","v":""}]
[null,null,null,null,7,{"$f":"IFERROR(INDEX('Résumé des notes'!$F$1:$F$41,SMALL(IF('Résumé des notes'!$G$1:$G$41<=$C$12,ROW('Résumé des notes'!$G$1:$G$41)),ROW(9:9))),\"\")","v":""}]
[null,null,3,null,8,{"$f":"IFERROR(INDEX('Résumé des notes'!$F$1:$F$41,SMALL(IF('Résumé des notes'!$G$1:$G$41<=$C$12,ROW('Résumé des notes'!$G$1:$G$41)),ROW(10:10))),\"\")","v":""}]
[null,null,null,null,9,{"$f":"IFERROR(INDEX('Résumé des notes'!$F$1:$F$41,SMALL(IF('Résumé des notes'!$G$1:$G$41<=$C$12,ROW('Résumé des notes'!$G$1:$G$41)),ROW(11:11))),\"\")","v":""}]
[null,null,null,null,10,{"$f":"IFERROR(INDEX('Résumé des notes'!$F$1:$F$41,SMALL(IF('Résumé des notes'!$G$1:$G$41<=$C$12,ROW('Résumé des notes'!$G$1:$G$41)),ROW(12:12))),\"\")","v":""}]
[null,null,null,null,11,{"$f":"IFERROR(INDEX('Résumé des notes'!$F$1:$F$41,SMALL(IF('Résumé des notes'!$G$1:$G$41<=$C$12,ROW('Résumé des notes'!$G$1:$G$41)),ROW(13:13))),\"\")","v":""}]
[null,null,null,null,12,{"$f":"IFERROR(INDEX('Résumé des notes'!$F$1:$F$41,SMALL(IF('Résumé des notes'!$G$1:$G$41<=$C$12,ROW('Résumé des notes'!$G$1:$G$41)),ROW(14:14))),\"\")","v":""}]
[null,null,null,null,13,{"$f":"IFERROR(INDEX('Résumé des notes'!$F$1:$F$41,SMALL(IF('Résumé des notes'!$G$1:$G$41<=$C$12,ROW('Résumé des notes'!$G$1:$G$41)),ROW(15:15))),\"\")","v":""}]
[null,null,null,null,14,{"$f":"IFERROR(INDEX('Résumé des notes'!$F$1:$F$41,SMALL(IF('Résumé des notes'!$G$1:$G$41<=$C$12,ROW('Résumé des notes'!$G$1:$G$41)),ROW(16:16))),\"\")","v":""}]
[null,null,null,null,15,{"$f":"IFERROR(INDEX('Résumé des notes'!$F$1:$F$41,SMALL(IF('Résumé des notes'!$G$1:$G$41<=$C$12,ROW('Résumé des notes'!$G$1:$G$41)),ROW(17:17))),\"\")","v":""}]
[null,null,null,null,16,{"$f":"IFERROR(INDEX('Résumé des notes'!$F$1:$F$41,SMALL(IF('Résumé des notes'!$G$1:$G$41<=$C$12,ROW('Résumé des notes'!$G$1:$G$41)),ROW(18:18))),\"\")","v":""}]
[null,null,null,null,17,{"$f":"IFERROR(INDEX('Résumé des notes'!$F$1:$F$41,SMALL(IF('Résumé des notes'!$G$1:$G$41<=$C$12,ROW('Résumé des notes'!$G$1:$G$41)),ROW(19:19))),\"\")","v":""}]
[null,null,null,null,18,{"$f":"IFERROR(INDEX('Résumé des notes'!$F$1:$F$41,SMALL(IF('Résumé des notes'!$G$1:$G$41<=$C$12,ROW('Résumé des notes'!$G$1:$G$41)),ROW(20:20))),\"\")","v":""}]
[null,null,null,null,19,{"$f":"IFERROR(INDEX('Résumé des notes'!$F$1:$F$41,SMALL(IF('Résumé des notes'!$G$1:$G$41<=$C$12,ROW('Résumé des notes'!$G$1:$G$41)),ROW(21:21))),\"\")","v":""}]
[null,null,null,null,20,{"$f":"IFERROR(INDEX('Résumé des notes'!$F$1:$F$41,SMALL(IF('Résumé des notes'!$G$1:$G$41<=$C$12,ROW('Résumé des notes'!$G$1:$G$41)),ROW(22:22))),\"\")","v":""}]
[null,null,null,null,21,{"$f":"IFERROR(INDEX('Résumé des notes'!$F$1:$F$41,SMALL(IF('Résumé des notes'!$G$1:$G$41<=$C$12,ROW('Résumé des notes'!$G$1:$G$41)),ROW(23:23))),\"\")","v":""}]
[null,null,null,null,22,{"$f":"IFERROR(INDEX('Résumé des notes'!$F$1:$F$41,SMALL(IF('Résumé des notes'!$G$1:$G$41<=$C$12,ROW('Résumé des notes'!$G$1:$G$41)),ROW(24:24))),\"\")","v":""}]
[null,null,null,null,23,{"$f":"IFERROR(INDEX('Résumé des notes'!$F$1:$F$41,SMALL(IF('Résumé des notes'!$G$1:$G$41<=$C$12,ROW('Résumé des notes'!$G$1:$G$41)),ROW(25:25))),\"\")","v":""}]
[null,null,null,null,24,{"$f":"IFERROR(INDEX('Résumé des notes'!$F$1:$F$41,SMALL(IF('Résumé des notes'!$G$1:$G$41<=$C$12,ROW('Résumé des notes'!$G$1:$G$41)),ROW(26:26))),\"\")","v":""}]
[null,null,null,null,25,{"$f":"IFERROR(INDEX('Résumé des notes'!$F$1:$F$41,SMALL(IF('Résumé des notes'!$G$1:$G$41<=$C$12,ROW('Résumé des notes'!$G$1:$G$41)),ROW(27:27))),\"\")","v":""}]
[null,null,null,null,26,{"$f":"IFERROR(INDEX('Résumé des notes'!$F$1:$F$41,SMALL(IF('Résumé des notes'!$G$1:$G$41<=$C$12,ROW('Résumé des notes'!$G$1:$G$41)),ROW(28:28))),\"\")","v":""}]
[null,null,null,null,27,{"$f":"IFERROR(INDEX('Résumé des notes'!$F$1:$F$41,SMALL(IF('Résumé des notes'!$G$1:$G$41<=$C$12,ROW('Résumé des notes'!$G$1:$G$41)),ROW(29:29))),\"\")","v":""}]
[null,null,null,null,28,{"$f":"IFERROR(INDEX('Résumé des notes'!$F$1:$F$41,SMALL(IF('Résumé des notes'!$G$1:$G$41<=$C$12,ROW('Résumé des notes'!$G$1:$G$41)),ROW(30:30))),\"\")","v":""}]
[null,null,null,null,29,{"$f":"IFERROR(INDEX('Résumé des notes'!$F$1:$F$41,SMALL(IF('Résumé des notes'!$G$1:$G$41<=$C$12,ROW('Résumé des notes'!$G$1:$G$41)),ROW(31:31))),\"\")","v":""}]
[null,null,null,null,30,{"$f":"IFERROR(INDEX('Résumé des notes'!$F$1:$F$41,SMALL(IF('Résumé des notes'!$G$1:$G$41<=$C$12,ROW('Résumé des notes'!$G$1:$G$41)),ROW(32:32))),\"\")","v":""}]
[null,null,null,null,31,{"$f":"IFERROR(INDEX('Résumé des notes'!$F$1:$F$41,SMALL(IF('Résumé des notes'!$G$1:$G$41<=$C$12,ROW('Résumé des notes'!$G$1:$G$41)),ROW(33:33))),\"\")","v":""}]
[null,null,null,null,32,{"$f":"IFERROR(INDEX('Résumé des notes'!$F$1:$F$41,SMALL(IF('Résumé des notes'!$G$1:$G$41<=$C$12,ROW('Résumé des notes'!$G$1:$G$41)),ROW(34:34))),\"\")","v":""}]
[null,null,null,null,33,{"$f":"IFERROR(INDEX('Résumé des notes'!$F$1:$F$41,SMALL(IF('Résumé des notes'!$G$1:$G$41<=$C$12,ROW('Résumé des notes'!$G$1:$G$41)),ROW(35:35))),\"\")","v":""}]
[null,null,null,null,34,{"$f":"IFERROR(INDEX('Résumé des notes'!$F$1:$F$41,SMALL(IF('Résumé des notes'!$G$1:$G$41<=$C$12,ROW('Résumé des notes'!$G$1:$G$41)),ROW(36:36))),\"\")","v":""}]
[null,null,null,null,35,{"$f":"IFERROR(INDEX('Résumé des notes'!$F$1:$F$41,SMALL(IF('Résumé des notes'!$G$1:$G$41<=$C$12,ROW('Résumé des notes'!$G$1:$G$41)),ROW(37:37))),\"\")","v":""}]
[null,null,null,null,36,{"$f":"IFERROR(INDEX('Résumé des notes'!$F$1:$F$41,SMALL(IF('Résumé des notes'!$G$1:$G$41<=$C$12,ROW('Résumé des notes'!$G$1:$G$41)),ROW(38:38))),\"\")","v":""}]
[null,null,null,null,37,{"$f":"IFERROR(INDEX('Résumé des notes'!$F$1:$F$41,SMALL(IF('Résumé des notes'!$G$1:$G$41<=$C$12,ROW('Résumé des notes'!$G$1:$G$41)),ROW(39:39))),\"\")","v":""}]
[null,null,null,null,38,{"$f":"IFERROR(INDEX('Résumé des notes'!$F$1:$F$41,SMALL(IF('Résumé des notes'!$G$1:$G$41<=$C$12,ROW('Résumé des notes'!$G$1:$G$41)),ROW(40:40))),\"\")","v":""}]
[null,null,null,null,39,{"$f":"IFERROR(INDEX('Résumé des notes'!$F$1:$F$41,SMALL(IF('Résumé des notes'!$G$1:$G$41<=$C$12,ROW('Résumé des notes'!$G$1:$G$41)),ROW(41:41))),\"\")","v":""}]
[null,null,null,null,40,{"$f":"IFERROR(INDEX('Résumé des notes'!$F$1:$F$41,SMALL(IF('Résumé des notes'!$G$1:$G$41<=$C$12,ROW('Résumé des notes'!$G$1:$G$41)),ROW(42:42))),\"\")","v":""}]
[null,null,null,null,41,{"$f":"IFERROR(INDEX('Résumé des notes'!$F$1:$F$41,SMALL(IF('Résumé des notes'!$G$1:$G$41<=$C$12,ROW('Résumé des notes'!$G$1:$G$41)),ROW(43:43))),\"\")","v":""}]
[null,null,null,null,42,{"$f":"IFERROR(INDEX('Résumé des notes'!$F$1:$F$41,SMALL(IF('Résumé des notes'!$G$1:$G$41<=$C$12,ROW('Résumé des notes'!$G$1:$G$41)),ROW(44:44))),\"\")","v":""}]
[null,null,null,null,43,{"$f":"IFERROR(INDEX('Résumé des notes'!$F$1:$F$41,SMALL(IF('Résumé des notes'!$G$1:$G$41<=$C$12,ROW('Résumé des notes'!$G$1:$G$41)),ROW(45:45))),\"\")","v":""}]
[null,null,null,null,44,{"$f":"IFERROR(INDEX('Résumé des notes'!$F$1:$F$41,SMALL(IF('Résumé des notes'!$G$1:$G$41<=$C$12,ROW('Résumé des notes'!$G$1:$G$41)),ROW(46:46))),\"\")","v":""}]
[null,null,null,null,45,{"$f":"IFERROR(INDEX('Résumé des notes'!$F$1:$F$41,SMALL(IF('Résumé des notes'!$G$1:$G$41<=$C$12,ROW('Résumé des notes'!$G$1:$G$41)),ROW(47:47))),\"\")","v":""}]
[null,null,null,null,46,{"$f":"IFERROR(INDEX('Résumé des notes'!$F$1:$F$41,SMALL(IF('Résumé des notes'!$G$1:$G$41<=$C$12,ROW('Résumé des notes'!$G$1:$G$41)),ROW(48:48))),\"\")","v":""}]
[null,null,null,null,47,{"$f":"IFERROR(INDEX('Résumé des notes'!$F$1:$F$41,SMALL(IF('Résumé des notes'!$G$1:$G$41<=$C$12,ROW('Résumé des notes'!$G$1:$G$41)),ROW(49:49))),\"\")","v":""}]
[null,null,null,null,48,{"$f":"IFERROR(INDEX('Résumé des notes'!$F$1:$F$41,SMALL(IF('Résumé des notes'!$G$1:$G$41<=$C$12,ROW('Résumé des notes'!$G$1:$G$41)),ROW(51:51))),\"\")","v":""}]
[null,null,null,null,49,{"$f":"IFERROR(INDEX('Résumé des notes'!$F$1:$F$41,SMALL(IF('Résumé des notes'!$G$1:$G$41<=$C$12,ROW('Résumé des notes'!$G$1:$G$41)),ROW(#REF!))),\"\")","v":""}]
[null,null,null,null,50]

{"sheet":"Bibliographie","index":10,"n_rows":41,"n_cols":4,"rows_kept":41,"cut":false,"hidden":false,"merged":[[1,2,1,3]]}
[]
[null,null,"Bibliographie"]
[null,null,1," A Total Market Approach. PSI/UNFPA Joint Studies on the Total Market for Male Condoms in Six African Countries: Botswana, Pallin, S.C., D. Meekers, O. Lupu, K. Longfield, 2013"]
[null,null,2,"A Total Market Approach. PSI/UNFPA Joint Studies on the Total Market for Male Condoms in 6 African Countries: Uganda, Pallin, S.C., D. Meekers, O. Lupu, K. Longfield., 2013"]
[null,null,3,"A Total Market Approach. PSI/UNFPA Joint Studies on the Total Market for Male Condoms in Six African Countries: South Africa, Pallin, S.C., D. Meekers, O. Lupu, K. Longfield., 2013"]
[null,null,4,"A Total Market Approach. PSI/UNFPA Joint Studies on the Total Market for Male Condoms in Six African Countries: Swaziland, Pallin, S.C., D. Meekers, O. Lupu, K. Longfield., 2013"]
[null,null,5,"Challenges and Recommendations for reaching Fast-Track targets for condom use, UNAIDS, 2019"]
[null,null,6,"Comprehensive Condom Programming: A guide to resource mobilization and country programming, UNFPA, 2010"]
[null,null,7,"Comprehensive Condom Programming: A guide for resource mobilization and country programming, UNFPA, 2010"]
[null,null,8,"Condom and lubricant programming in high HIV prevalence countries, UNAIDS, 2014"]
[null,null,9,"Condom Market Landscaping Case Study: Botswana, Mann Global Health, 2017"]
[null,null,10,"Condom Market Landscaping Case Study: Kenya, Mann Global Health, 2017"]
[null,null,11,"Condom Market Landscaping Case Study: Tanzania, Mann Global Health, 2017"]
[null,null,12,"Condom Market Landscaping Case Study: Zambia, Mann Global Health, 2017"]
[null,null,13,"Condom Market Landscaping Case Study: Zimbabwe, Mann Global Health, 2017"]
[null,null,14,"Condom Needs and Resource Requirement  Estimation Tool, UNFPA 2019"]
[null,null,15,"Donor Trends Condom Landscape Analysis, Mann Global Health, 2019"]
[null,null,16,"Handbook for Research on the Family Planning Market. Volume 1: Using Data to Inform a Total Market Approach to Family Planning. Chapel Hill, NC: MEASURE Evaluation, University of North Carolina, Meekers, Dominique, Sarah C. Haynes, and Kathryn Kampa, 2016"]
[null,null,17,"Handbook for Research on the Family Planning Market. Volume 2: Tools and Resources for an In-Depth Analysis of the Family Planning Market. Chapel Hill, NC: MEASURE Evaluation, University of North Carolina, Meekers, Dominique, Sarah C. Haynes, and Kathryn Kampa, 2016"]
[null,null,18,"Handbook for Research on the Family Planning Market: Using Data to Inform a Total Market Approach.  Presented at the meeting of the USAID/UNFPA TMA Working Group, D. Meekers, Washington DC, July 26, 2016"]
[null,null,19,"Joint United Nations Programme on HIV/AIDS. (2020). Maintaining and prioritizing HIV prevention services in the time of COVID-19"]
[null,null,20,"Joint United Nations Programme on HIV/AIDS. (2020). Condoms and lubricants in the time of COVID-19. Sustaining supplies and people-centred approaches to meet the need in low- and middle-income countries"]
[null,null,21,"Joint United Nations Programme on HIV/AIDS. (2020). UNAIDS highlights six critical actions to put gender equality at the centre of COVID-19 responses"]
[null,null,22,"Joint United Nations Programme on HIV/AIDS. (2020). Strategic Considerations for Mitigating the Impact of COVID-19 on Key-Population-Focused HIV Programs"]
[null,null,23,"Joint United Nations Programme on HIV/AIDS. (2020). Preventing HIV and other STIs among women and girls using contraceptive services in contexts with high HIV incidence"]
[null,null,24,"Joint United Nations Programme on HIV/AIDS. (2021). Going Online: A Budgeting and Programming Aid for Virtual HIV Interventions"]
[null,null,25,"Market Development Approaches Working Group: Market Segmentation Primer, USAID, 2009"]
[null,null,26,"Planning Guide for a Total Market Approach to Increase Access to Family Planning. Module 1: Landscape Assessment. Seattle, WA: PATH and Washington, DC: The Population Council, Evidence Project, Brady C, Weeden L, Hutchings J., Parks, J, 2016"]
[null,null,27,"Planning Guide for a Total Market Approach to Increase Access to Family Planning. Planning Toolkit. Seattle, WA: PATH and Washington, DC: The Population Council, Evidence Project, Brady C, Weeden L, Hutchings J., Parks, J, 2016"]
[null,null,28,"Rapid assessment checklist: Analysis of plans & systems for delivering effective HIV prevention, UNSAIDS, 2018"]
[null,null,29,"Rapid Needs Assessment Tool for Condom Programming, UNFPA, 2003"]
[null,null,30,"Reinvigorating Condoms as an HIV Prevention Tool. USAID, Jafa, K. et al., 2012"]
[null,null,31,"Resources supporting the UNFPA 20 by 20 meeting, Bangkok (2018), unpublished"]
[null,null,32,"The Condom Program Pathway, Mann Global Health, 2017"]
[null,null,33,"The Condom Push, UNAIDS & UNFPA, 2015"]
[null,null,34,"The role of social marketing organizations in strengthening the commercial sector: case studies for male condoms in Myanmar and Vietnam. Cases in Public Health Communication & Marketing, Longfield K, Ayers J, Han WH, Neukom J, Lupu O, Walker D.  2014;8(suppl 1):S42-S63"]
[null,null,35,"Total Market Approach Stewardship Capacity Assessment Report, Reproductive Health Supplies Coalition, 2015"]
[null,null,36,"Total Market Initiatives for Reproductive Health. Bethesda, MD: Strengthening Health Outcomes through the Private Sector Project, Abt Associates, Barnes, Jeffrey, Janet Vail, and Dawn Crosby, 2012"]
[null,null,37,"Towards the standardization of Total Market Approach indicators for male condoms. Cases in Public Health Communication & Marketing, Pallin SC, Meekers D, 2014;8(suppl 1):S86-S103"]
[null,null,38,"Using Total Market Approaches in Condom Programs. Bethesda, MD: Strengthening Health Outcomes through the Private Sector Project, Abt Associates. Barnes, J.F. Armand, S. Callahan, and C. Revuz, 2015 "]
[null,null,39,"Zimbabwe Mass drug administration Strategy: Full Analysis, unpublished"]

{"sheet":"Acronymes","index":11,"n_rows":25,"n_cols":4,"rows_kept":25,"cut":false,"hidden":false,"merged":[[1,2,1,3]]}
[]
[null,null,"Acronymes"]
[null,null,"AGM","Analyse globale du marché"]
[null,null,"BCCR","Bien de consommation à circulation rapide "]
[null,null,"Cadre S&E","Cadre de suivi et d’évaluation "]
[null,null,"C-NET","Outil d’estimation des besoins et des ressources en préservatifs de l’ONUSIDA"]
[null,null,"GTT","Groupe de travail / Groupe de travail technique "]
[null,null,"HSH","Hommes ayant rapports sexuels avec des hommes "]
[null,null,"M/F","Masculin/Féminin"]
[null,null,"MD","Marché durable des préservatifs / Marché durable "]
[null,null,"MdS","Ministère de la santé "]
[null,null,"MS","Marketing social"]
[null,null,"NE","Niveau d’effort"]
[null,null,"ONG","Organisation non-gouvernementale"]
[null,null,"PC","Populations clés"]
[null,null,"PF","Planification familiale"]
[null,null,"PP","Populations prioritaires"]
[null,null,"SIGL","Système d’information et de gestion logistique "]
[null,null,"SMS ","Spécialistes du marketing social"]
[null,null,"SSR","Santé sexuelle reproductive "]
[null,null,"TC","Théorie du changement"]
[null,null,"TS","Travailleur du sexe"]
[null,null,"TSe","Travailleuse du sexe"]
[null,null,"TVA","Taxe sur la valeur ajoutée"]
[null,null,"U/R","Urbain / Rural"]